{"text_format":"1","workbook":"xlsx","n_sheets":3,"sheets":["Лист1","Лист2","Лист3"],"not_rendered":{"charts":0,"images":0,"macros":1,"external_links":0,"defined_names":0,"comments":1,"pivot_tables":0},"unopened":[],"bounds":{"document_bytes":16777216,"sheet_cells":100000,"rows_first":2000,"rows_last":500,"rows_between":2000,"halvings":0,"cell_chars":16384,"cell_head_chars":4096},"cells_cut":0,"cells_raw":0,"read":"whole","date_system":"1900"}

{"sheet":"Лист1","index":0,"n_rows":59,"n_cols":10,"rows_kept":59,"cut":false,"hidden":false,"merged":[]}
["Индекс","лесничество","квартал","выдел","площадь","категория","культуры","повреждения","мероприятия","изменения"]
["Благоевское11","Благоевское",1,1,2,"Болото"]
["Благоевское12","Благоевское",1,2,7,"Насажд.естеств.происх."]
["Благоевское13","Благоевское",1,3,5,"Насажд.естеств.происх."]
["Благоевское14","Благоевское",1,4,2,"Насажд.естеств.происх."]
["Благоевское15","Благоевское",1,5,2,"Насажд.естеств.происх."]
["Благоевское16","Благоевское",1,6,2,"Насажд.естеств.происх."]
["Благоевское17","Благоевское",1,7,4,"Насажд.естеств.происх."]
["Благоевское18","Благоевское",1,8,9,"Насажд.естеств.происх."]
["Благоевское19","Благоевское",1,9,8,"Насажд.естеств.происх."]
["Благоевское110","Благоевское",1,10,18,"Болото"]
["Благоевское111","Благоевское",1,11,22,"Насажд.естеств.происх."]
["Благоевское112","Благоевское",1,12,12,"Болото"]
["Благоевское113","Благоевское",1,13,5,"Насажд.естеств.происх."]
["Благоевское114","Благоевское",1,14,13,"Насажд.естеств.происх."]
["Благоевское115","Благоевское",1,15,10,"Насажд.естеств.происх."]
["Благоевское116","Благоевское",1,16,14,"Насажд.естеств.происх."]
["Благоевское117","Благоевское",1,17,26,"Насажд.естеств.происх."]
["Благоевское118","Благоевское",1,18,31,"Гарь",null,"тип повреждения:Низовым пожаром; год:2011; поврежденная порода:Сосна; первый вредитель:0; степень повреждения:-; второй вредитель:0; степень повреждения:-; источник вредного воздействия:864; ",null,"Номер исходного выдела:0; Номер подвыдела:0; Унаследованная площадь x100:0; Базовый : 1, присоединенный : 0:0; Год изменения:0; Месяц изменения:0; "]
["Благоевское119","Благоевское",1,19,12,"Насажд.естеств.происх."]
["Благоевское120","Благоевское",1,20,7,"Насажд.естеств.происх."]
["Благоевское121","Благоевское",1,21,28,"Насажд.естеств.происх."]
["Благоевское122","Благоевское",1,22,40,"Насажд.естеств.происх."]
["Благоевское123","Благоевское",1,23,39,"Насажд.естеств.происх."]
["Благоевское124","Благоевское",1,24,27,"Насажд.естеств.происх."]
["Благоевское125","Благоевское",1,25,4,"Насажд.естеств.происх."]
["Благоевское126","Благоевское",1,26,26,"Насажд.естеств.происх."]
["Благоевское127","Благоевское",1,27,12,"Насажд.естеств.происх."]
["Благоевское128","Благоевское",1,28,22,"Насажд.естеств.происх."]
["Благоевское129","Благоевское",1,29,35,"Насажд.естеств.происх."]
["Благоевское130","Благоевское",1,30,24,"Насажд.естеств.происх."]
["Благоевское131","Благоевское",1,31,3,"Насажд.естеств.происх."]
["Благоевское132","Благоевское",1,32,12,"Насажд.естеств.происх."]
["Благоевское133","Благоевское",1,33,25,"Насажд.естеств.происх."]
["Благоевское134","Благоевское",1,34,11,"Насажд.естеств.происх."]
["Благоевское135","Благоевское",1,35,37,"Насажд.естеств.происх."]
["Благоевское136","Благоевское",1,36,9,"Насажд.естеств.происх."]
["Благоевское137","Благоевское",1,37,25,"Насажд.естеств.происх."]
["Благоевское138","Благоевское",1,38,21,"Насажд.естеств.происх."]
["Благоевское139","Благоевское",1,39,26,"Насажд.естеств.происх."]
["Благоевское140","Благоевское",1,40,36,"Насажд.естеств.происх."]
["Благоевское141","Благоевское",1,41,54,"Насажд.естеств.происх."]
["Благоевское142","Благоевское",1,42,16,"Насажд.естеств.происх."]
["Благоевское143","Благоевское",1,43,6,"Насажд.естеств.происх."]
["Благоевское144","Благоевское",1,44,59,"Насажд.естеств.происх."]
["Благоевское145","Благоевское",1,45,11,"Насажд.естеств.происх."]
["Благоевское146","Благоевское",1,46,10,"Насажд.естеств.происх."]
["Благоевское147","Благоевское",1,47,3,"Насажд.естеств.происх."]
["Благоевское148","Благоевское",1,48,5,"Насажд.естеств.происх."]
["Благоевское149","Благоевское",1,49,4,"Насажд.естеств.происх."]
["Благоевское150","Благоевское",1,50,3,"Насажд.естеств.происх."]
["Благоевское151","Благоевское",1,51,2,"Насажд.естеств.происх."]
["Благоевское152","Благоевское",1,52,2,"Насажд.естеств.происх."]
["Благоевское153","Благоевское",1,53,6,"Насажд.естеств.происх."]
["Благоевское154","Благоевское",1,54,7,"Насажд.естеств.происх."]
["Благоевское155","Благоевское",1,55,2,"Насажд.естеств.происх."]
["Благоевское156","Благоевское",1,56,1,"Дорога автом.грунтовая"]
["Благоевское157","Благоевское",1,57,2,"Ручей"]
["Благоевское158","Благоевское",1,58,1,"Просеки квартальные"]

{"sheet":"Лист2","index":1,"n_rows":34,"n_cols":17,"rows_kept":34,"cut":false,"hidden":false,"merged":[[0,0,0,13],[2,9,5,9],[2,10,5,10],[2,11,5,11],[2,12,5,12],[2,13,5,13],[1,0,1,13],[2,1,5,1],[2,2,5,2],[2,3,5,3],[2,4,5,4],[2,5,5,5],[2,6,5,6],[2,7,5,7],[2,8,5,8]]}
[]
[]
[null,"Участковое лесничество","Лесопользователь","Вид и сроки аренды (безвозм. пользования)","Квартал","Выдел","Дата обследования","Основная причина ослабления (усыхания)","Площадь повреждения, га","степень усыхания насаждения,% ","Погибшие","Категория земель","Назначено лесничеством","Площадь, га",null,null,"Вырубка"]
[null,null,null,null,null,null,null,null,null,null,null,null,null,null,null,null,"Культуры несомкнувш."]
[null,null,null,null,null,null,null,null,null,null,null,null,null,null,null,null,"Насажд.из подроста"]
[]
["1","2","3","4","5","6","7","8","9","10","11","12","122","13"]
[{"$f":"Таблица2[[#This Row],[2]]&Таблица2[[#This Row],[5]]&Таблица2[[#This Row],[6]]","v":"Благоевское15"},"Благоевское",null,null,1,5,2012,"УНП сред.инт.2011г.",2,11,null,{"$f":"VLOOKUP(Таблица2[[#This Row],[1]],Таблица1[],6,0)","v":"Насажд.естеств.происх."},{"$f":"IF(Таблица2[[#This Row],[12]]=$Q$3,\"Вырубка\",IF(Таблица2[[#This Row],[12]]=$Q$4,\"Культуры несомкнувш.\",IF(Таблица2[[#This Row],[12]]=$Q$5,\"Насажд.из подроста\",\"\")))","v":""}]
[{"$f":"Таблица2[[#This Row],[2]]&Таблица2[[#This Row],[5]]&Таблица2[[#This Row],[6]]","v":"Благоевское17"},"Благоевское",null,null,1,7,2012,"УНП сред.инт.2011г.",4,14,null,{"$f":"VLOOKUP(Таблица2[[#This Row],[1]],Таблица1[],6,0)","v":"Насажд.естеств.происх."},{"$f":"IF(Таблица2[[#This Row],[12]]=$Q$3,\"Вырубка\",IF(Таблица2[[#This Row],[12]]=$Q$4,\"Культуры несомкнувш.\",IF(Таблица2[[#This Row],[12]]=$Q$5,\"Насажд.из подроста\",\"\")))","v":""}]
[{"$f":"Таблица2[[#This Row],[2]]&Таблица2[[#This Row],[5]]&Таблица2[[#This Row],[6]]","v":"Благоевское18"},"Благоевское",null,null,1,8,2012,"УНП сред.инт.2011г.",9,9.6,null,{"$f":"VLOOKUP(Таблица2[[#This Row],[1]],Таблица1[],6,0)","v":"Насажд.естеств.происх."},{"$f":"IF(Таблица2[[#This Row],[12]]=$Q$3,\"Вырубка\",IF(Таблица2[[#This Row],[12]]=$Q$4,\"Культуры несомкнувш.\",IF(Таблица2[[#This Row],[12]]=$Q$5,\"Насажд.из подроста\",\"\")))","v":""}]
[{"$f":"Таблица2[[#This Row],[2]]&Таблица2[[#This Row],[5]]&Таблица2[[#This Row],[6]]","v":"Благоевское19"},"Благоевское",null,null,1,9,2012,"УНП сред.инт.2011г.",8,12,null,{"$f":"VLOOKUP(Таблица2[[#This Row],[1]],Таблица1[],6,0)","v":"Насажд.естеств.происх."},{"$f":"IF(Таблица2[[#This Row],[12]]=$Q$3,\"Вырубка\",IF(Таблица2[[#This Row],[12]]=$Q$4,\"Культуры несомкнувш.\",IF(Таблица2[[#This Row],[12]]=$Q$5,\"Насажд.из подроста\",\"\")))","v":""}]
[{"$f":"Таблица2[[#This Row],[2]]&Таблица2[[#This Row],[5]]&Таблица2[[#This Row],[6]]","v":"Благоевское111"},"Благоевское",null,null,1,11,2012,"УНП сред.инт.2011г.",22,11,null,{"$f":"VLOOKUP(Таблица2[[#This Row],[1]],Таблица1[],6,0)","v":"Насажд.естеств.происх."},{"$f":"IF(Таблица2[[#This Row],[12]]=$Q$3,\"Вырубка\",IF(Таблица2[[#This Row],[12]]=$Q$4,\"Культуры несомкнувш.\",IF(Таблица2[[#This Row],[12]]=$Q$5,\"Насажд.из подроста\",\"\")))","v":""}]
[{"$f":"Таблица2[[#This Row],[2]]&Таблица2[[#This Row],[5]]&Таблица2[[#This Row],[6]]","v":"Благоевское113"},"Благоевское",null,null,1,13,2012,"УНП сред.инт.2011г.",5,7.2,null,{"$f":"VLOOKUP(Таблица2[[#This Row],[1]],Таблица1[],6,0)","v":"Насажд.естеств.происх."},{"$f":"IF(Таблица2[[#This Row],[12]]=$Q$3,\"Вырубка\",IF(Таблица2[[#This Row],[12]]=$Q$4,\"Культуры несомкнувш.\",IF(Таблица2[[#This Row],[12]]=$Q$5,\"Насажд.из подроста\",\"\")))","v":""}]
[{"$f":"Таблица2[[#This Row],[2]]&Таблица2[[#This Row],[5]]&Таблица2[[#This Row],[6]]","v":"Благоевское114"},"Благоевское",null,null,1,14,2012,"УНП сред.инт.2011г.",12,6,null,{"$f":"VLOOKUP(Таблица2[[#This Row],[1]],Таблица1[],6,0)","v":"Насажд.естеств.происх."},{"$f":"IF(Таблица2[[#This Row],[12]]=$Q$3,\"Вырубка\",IF(Таблица2[[#This Row],[12]]=$Q$4,\"Культуры несомкнувш.\",IF(Таблица2[[#This Row],[12]]=$Q$5,\"Насажд.из подроста\",\"\")))","v":""}]
[{"$f":"Таблица2[[#This Row],[2]]&Таблица2[[#This Row],[5]]&Таблица2[[#This Row],[6]]","v":"Благоевское115"},"Благоевское",null,null,1,15,2012,"УНП сред.инт.2011г.",10,7,null,{"$f":"VLOOKUP(Таблица2[[#This Row],[1]],Таблица1[],6,0)","v":"Насажд.естеств.происх."},{"$f":"IF(Таблица2[[#This Row],[12]]=$Q$3,\"Вырубка\",IF(Таблица2[[#This Row],[12]]=$Q$4,\"Культуры несомкнувш.\",IF(Таблица2[[#This Row],[12]]=$Q$5,\"Насажд.из подроста\",\"\")))","v":""}]
[{"$f":"Таблица2[[#This Row],[2]]&Таблица2[[#This Row],[5]]&Таблица2[[#This Row],[6]]","v":"Благоевское116"},"Благоевское",null,null,1,16,2012,"УНП сред.инт.2011г.",14,8,null,{"$f":"VLOOKUP(Таблица2[[#This Row],[1]],Таблица1[],6,0)","v":"Насажд.естеств.происх."},{"$f":"IF(Таблица2[[#This Row],[12]]=$Q$3,\"Вырубка\",IF(Таблица2[[#This Row],[12]]=$Q$4,\"Культуры несомкнувш.\",IF(Таблица2[[#This Row],[12]]=$Q$5,\"Насажд.из подроста\",\"\")))","v":""}]
[{"$f":"Таблица2[[#This Row],[2]]&Таблица2[[#This Row],[5]]&Таблица2[[#This Row],[6]]","v":"Благоевское117"},"Благоевское",null,null,1,17,2012,"УНП сред.инт.2011г.",26,4.2,null,{"$f":"VLOOKUP(Таблица2[[#This Row],[1]],Таблица1[],6,0)","v":"Насажд.естеств.происх."},{"$f":"IF(Таблица2[[#This Row],[12]]=$Q$3,\"Вырубка\",IF(Таблица2[[#This Row],[12]]=$Q$4,\"Культуры несомкнувш.\",IF(Таблица2[[#This Row],[12]]=$Q$5,\"Насажд.из подроста\",\"\")))","v":""}]
[{"$f":"Таблица2[[#This Row],[2]]&Таблица2[[#This Row],[5]]&Таблица2[[#This Row],[6]]","v":"Благоевское118"},"Благоевское",null,null,1,18,2012,"УНП сред.инт.2011г.",31,92,"погиб.",{"$f":"VLOOKUP(Таблица2[[#This Row],[1]],Таблица1[],6,0)","v":"Гарь"},{"$f":"IF(Таблица2[[#This Row],[12]]=$Q$3,\"Вырубка\",IF(Таблица2[[#This Row],[12]]=$Q$4,\"Культуры несомкнувш.\",IF(Таблица2[[#This Row],[12]]=$Q$5,\"Насажд.из подроста\",\"\")))","v":""}]
[{"$f":"Таблица2[[#This Row],[2]]&Таблица2[[#This Row],[5]]&Таблица2[[#This Row],[6]]","v":"Благоевское119"},"Благоевское",null,null,1,19,2012,"УНП сред.инт.2011г.",12,13,null,{"$f":"VLOOKUP(Таблица2[[#This Row],[1]],Таблица1[],6,0)","v":"Насажд.естеств.происх."},{"$f":"IF(Таблица2[[#This Row],[12]]=$Q$3,\"Вырубка\",IF(Таблица2[[#This Row],[12]]=$Q$4,\"Культуры несомкнувш.\",IF(Таблица2[[#This Row],[12]]=$Q$5,\"Насажд.из подроста\",\"\")))","v":""}]
[{"$f":"Таблица2[[#This Row],[2]]&Таблица2[[#This Row],[5]]&Таблица2[[#This Row],[6]]","v":"Благоевское120"},"Благоевское",null,null,1,20,2012,"УНП сред.инт.2011г.",7,12,null,{"$f":"VLOOKUP(Таблица2[[#This Row],[1]],Таблица1[],6,0)","v":"Насажд.естеств.происх."},{"$f":"IF(Таблица2[[#This Row],[12]]=$Q$3,\"Вырубка\",IF(Таблица2[[#This Row],[12]]=$Q$4,\"Культуры несомкнувш.\",IF(Таблица2[[#This Row],[12]]=$Q$5,\"Насажд.из подроста\",\"\")))","v":""}]
[{"$f":"Таблица2[[#This Row],[2]]&Таблица2[[#This Row],[5]]&Таблица2[[#This Row],[6]]","v":"Благоевское121"},"Благоевское",null,null,1,21,2012,"УНП сред.инт.2011г.",12,6.4,null,{"$f":"VLOOKUP(Таблица2[[#This Row],[1]],Таблица1[],6,0)","v":"Насажд.естеств.происх."},{"$f":"IF(Таблица2[[#This Row],[12]]=$Q$3,\"Вырубка\",IF(Таблица2[[#This Row],[12]]=$Q$4,\"Культуры несомкнувш.\",IF(Таблица2[[#This Row],[12]]=$Q$5,\"Насажд.из подроста\",\"\")))","v":""}]
[{"$f":"Таблица2[[#This Row],[2]]&Таблица2[[#This Row],[5]]&Таблица2[[#This Row],[6]]","v":"Благоевское122"},"Благоевское",null,null,1,22,2012,"УНП сред.инт.2011г.",40,10,null,{"$f":"VLOOKUP(Таблица2[[#This Row],[1]],Таблица1[],6,0)","v":"Насажд.естеств.происх."},{"$f":"IF(Таблица2[[#This Row],[12]]=$Q$3,\"Вырубка\",IF(Таблица2[[#This Row],[12]]=$Q$4,\"Культуры несомкнувш.\",IF(Таблица2[[#This Row],[12]]=$Q$5,\"Насажд.из подроста\",\"\")))","v":""}]
[{"$f":"Таблица2[[#This Row],[2]]&Таблица2[[#This Row],[5]]&Таблица2[[#This Row],[6]]","v":"Благоевское123"},"Благоевское",null,null,1,23,2012,"УНП сред.инт.2011г.",39,13,null,{"$f":"VLOOKUP(Таблица2[[#This Row],[1]],Таблица1[],6,0)","v":"Насажд.естеств.происх."},{"$f":"IF(Таблица2[[#This Row],[12]]=$Q$3,\"Вырубка\",IF(Таблица2[[#This Row],[12]]=$Q$4,\"Культуры несомкнувш.\",IF(Таблица2[[#This Row],[12]]=$Q$5,\"Насажд.из подроста\",\"\")))","v":""}]
[{"$f":"Таблица2[[#This Row],[2]]&Таблица2[[#This Row],[5]]&Таблица2[[#This Row],[6]]","v":"Благоевское124"},"Благоевское",null,null,1,24,2012,"УНП сред.инт.2011г.",27,14,null,{"$f":"VLOOKUP(Таблица2[[#This Row],[1]],Таблица1[],6,0)","v":"Насажд.естеств.происх."},{"$f":"IF(Таблица2[[#This Row],[12]]=$Q$3,\"Вырубка\",IF(Таблица2[[#This Row],[12]]=$Q$4,\"Культуры несомкнувш.\",IF(Таблица2[[#This Row],[12]]=$Q$5,\"Насажд.из подроста\",\"\")))","v":""}]
[{"$f":"Таблица2[[#This Row],[2]]&Таблица2[[#This Row],[5]]&Таблица2[[#This Row],[6]]","v":"Благоевское126"},"Благоевское",null,null,1,26,2012,"УНП сред.инт.2011г.",25,17,null,{"$f":"VLOOKUP(Таблица2[[#This Row],[1]],Таблица1[],6,0)","v":"Насажд.естеств.происх."},{"$f":"IF(Таблица2[[#This Row],[12]]=$Q$3,\"Вырубка\",IF(Таблица2[[#This Row],[12]]=$Q$4,\"Культуры несомкнувш.\",IF(Таблица2[[#This Row],[12]]=$Q$5,\"Насажд.из подроста\",\"\")))","v":""}]
[{"$f":"Таблица2[[#This Row],[2]]&Таблица2[[#This Row],[5]]&Таблица2[[#This Row],[6]]","v":"Благоевское127"},"Благоевское",null,null,1,27,2012,"УНП сред.инт.2011г.",4,15,null,{"$f":"VLOOKUP(Таблица2[[#This Row],[1]],Таблица1[],6,0)","v":"Насажд.естеств.происх."},{"$f":"IF(Таблица2[[#This Row],[12]]=$Q$3,\"Вырубка\",IF(Таблица2[[#This Row],[12]]=$Q$4,\"Культуры несомкнувш.\",IF(Таблица2[[#This Row],[12]]=$Q$5,\"Насажд.из подроста\",\"\")))","v":""}]
[{"$f":"Таблица2[[#This Row],[2]]&Таблица2[[#This Row],[5]]&Таблица2[[#This Row],[6]]","v":"Благоевское129"},"Благоевское",null,null,1,29,2012,"УНП сред.инт.2011г.",3.5,2.8,null,{"$f":"VLOOKUP(Таблица2[[#This Row],[1]],Таблица1[],6,0)","v":"Насажд.естеств.происх."},{"$f":"IF(Таблица2[[#This Row],[12]]=$Q$3,\"Вырубка\",IF(Таблица2[[#This Row],[12]]=$Q$4,\"Культуры несомкнувш.\",IF(Таблица2[[#This Row],[12]]=$Q$5,\"Насажд.из подроста\",\"\")))","v":""}]
[{"$f":"Таблица2[[#This Row],[2]]&Таблица2[[#This Row],[5]]&Таблица2[[#This Row],[6]]","v":"Благоевское130"},"Благоевское",null,null,1,30,2012,"УНП сред.инт.2011г.",12,7,null,{"$f":"VLOOKUP(Таблица2[[#This Row],[1]],Таблица1[],6,0)","v":"Насажд.естеств.происх."},{"$f":"IF(Таблица2[[#This Row],[12]]=$Q$3,\"Вырубка\",IF(Таблица2[[#This Row],[12]]=$Q$4,\"Культуры несомкнувш.\",IF(Таблица2[[#This Row],[12]]=$Q$5,\"Насажд.из подроста\",\"\")))","v":""}]
[{"$f":"Таблица2[[#This Row],[2]]&Таблица2[[#This Row],[5]]&Таблица2[[#This Row],[6]]","v":"Благоевское152"},"Благоевское",null,null,1,52,2012,"УНП сред.инт.2011г.",2,11,null,{"$f":"VLOOKUP(Таблица2[[#This Row],[1]],Таблица1[],6,0)","v":"Насажд.естеств.происх."},{"$f":"IF(Таблица2[[#This Row],[12]]=$Q$3,\"Вырубка\",IF(Таблица2[[#This Row],[12]]=$Q$4,\"Культуры несомкнувш.\",IF(Таблица2[[#This Row],[12]]=$Q$5,\"Насажд.из подроста\",\"\")))","v":""}]
[{"$f":"Таблица2[[#This Row],[2]]&Таблица2[[#This Row],[5]]&Таблица2[[#This Row],[6]]","v":"Благоевское153"},"Благоевское",null,null,1,53,2012,"УНП сред.инт.2011г.",6,20,null,{"$f":"VLOOKUP(Таблица2[[#This Row],[1]],Таблица1[],6,0)","v":"Насажд.естеств.происх."},{"$f":"IF(Таблица2[[#This Row],[12]]=$Q$3,\"Вырубка\",IF(Таблица2[[#This Row],[12]]=$Q$4,\"Культуры несомкнувш.\",IF(Таблица2[[#This Row],[12]]=$Q$5,\"Насажд.из подроста\",\"\")))","v":""}]
[{"$f":"Таблица2[[#This Row],[2]]&Таблица2[[#This Row],[5]]&Таблица2[[#This Row],[6]]","v":"Благоевское216"},"Благоевское",null,null,2,16,2012,"УНП сред.инт.2011г.",5,8.1999999999999993,null,{"$f":"VLOOKUP(Таблица2[[#This Row],[1]],Таблица1[],6,0)","v":{"$error":"#N/A"}},{"$f":"IF(Таблица2[[#This Row],[12]]=$Q$3,\"Вырубка\",IF(Таблица2[[#This Row],[12]]=$Q$4,\"Культуры несомкнувш.\",IF(Таблица2[[#This Row],[12]]=$Q$5,\"Насажд.из подроста\",\"\")))","v":{"$error":"#N/A"}}]
[{"$f":"Таблица2[[#This Row],[2]]&Таблица2[[#This Row],[5]]&Таблица2[[#This Row],[6]]","v":"Благоевское219"},"Благоевское",null,null,2,19,2012,"УНП сред.инт.2011г.",6,5.6,null,{"$f":"VLOOKUP(Таблица2[[#This Row],[1]],Таблица1[],6,0)","v":{"$error":"#N/A"}},{"$f":"IF(Таблица2[[#This Row],[12]]=$Q$3,\"Вырубка\",IF(Таблица2[[#This Row],[12]]=$Q$4,\"Культуры несомкнувш.\",IF(Таблица2[[#This Row],[12]]=$Q$5,\"Насажд.из подроста\",\"\")))","v":{"$error":"#N/A"}}]
[{"$f":"Таблица2[[#This Row],[2]]&Таблица2[[#This Row],[5]]&Таблица2[[#This Row],[6]]","v":"Благоевское222"},"Благоевское",null,null,2,22,2012,"УНП сред.инт.2011г.",13,8,null,{"$f":"VLOOKUP(Таблица2[[#This Row],[1]],Таблица1[],6,0)","v":{"$error":"#N/A"}},{"$f":"IF(Таблица2[[#This Row],[12]]=$Q$3,\"Вырубка\",IF(Таблица2[[#This Row],[12]]=$Q$4,\"Культуры несомкнувш.\",IF(Таблица2[[#This Row],[12]]=$Q$5,\"Насажд.из подроста\",\"\")))","v":{"$error":"#N/A"}}]
[{"$f":"Таблица2[[#This Row],[2]]&Таблица2[[#This Row],[5]]&Таблица2[[#This Row],[6]]","v":"Благоевское233"},"Благоевское",null,null,2,33,2012,"УНП сред.инт.2011г.",26,18,null,{"$f":"VLOOKUP(Таблица2[[#This Row],[1]],Таблица1[],6,0)","v":{"$error":"#N/A"}},{"$f":"IF(Таблица2[[#This Row],[12]]=$Q$3,\"Вырубка\",IF(Таблица2[[#This Row],[12]]=$Q$4,\"Культуры несомкнувш.\",IF(Таблица2[[#This Row],[12]]=$Q$5,\"Насажд.из подроста\",\"\")))","v":{"$error":"#N/A"}}]

{"sheet":"Лист3","index":2,"n_rows":17,"n_cols":12,"rows_kept":17,"cut":false,"hidden":false,"merged":[]}
["Лесничество","Квартал","Выдел","Площадь","Вид мероприятия","Дата проведения",null,null,null,null,null,15]
[{"$f":"VLOOKUP(Лист2!A8,Таблица1[],2,0)","v":"Благоевское"},{"$f":"VLOOKUP(Лист2!A8,Таблица1[],3,0)","v":1},{"$f":"VLOOKUP(Лист2!A8,Таблица1[],4,0)","v":5},{"$f":"VLOOKUP(Лист2!A8,Таблица1[],5,0)","v":2},{"$f":"VLOOKUP(Лист2!A8,Таблица1[],6,0)","v":"Насажд.естеств.происх."},{"$f":"VLOOKUP(Лист2!A8,Таблица1[],9,0)","v":0}]
[{"$f":"VLOOKUP(Лист2!A9,Таблица1[],2,0)","v":"Благоевское"},{"$f":"VLOOKUP(Лист2!A9,Таблица1[],3,0)","v":1},{"$f":"VLOOKUP(Лист2!A9,Таблица1[],4,0)","v":7},{"$f":"VLOOKUP(Лист2!A9,Таблица1[],5,0)","v":4},{"$f":"VLOOKUP(Лист2!A9,Таблица1[],6,0)","v":"Насажд.естеств.происх."},{"$f":"VLOOKUP(Лист2!A9,Таблица1[],9,0)","v":0},null,null,null,null,null,"При запуске макрос должен повториться до строки 10672"]
[{"$f":"VLOOKUP(Лист2!A10,Таблица1[],2,0)","v":"Благоевское"},{"$f":"VLOOKUP(Лист2!A10,Таблица1[],3,0)","v":1},{"$f":"VLOOKUP(Лист2!A10,Таблица1[],4,0)","v":8},{"$f":"VLOOKUP(Лист2!A10,Таблица1[],5,0)","v":9},{"$f":"VLOOKUP(Лист2!A10,Таблица1[],6,0)","v":"Насажд.естеств.происх."},{"$f":"VLOOKUP(Лист2!A10,Таблица1[],9,0)","v":0}]
[{"$f":"VLOOKUP(Лист2!A11,Таблица1[],2,0)","v":"Благоевское"},{"$f":"VLOOKUP(Лист2!A11,Таблица1[],3,0)","v":1},{"$f":"VLOOKUP(Лист2!A11,Таблица1[],4,0)","v":9},{"$f":"VLOOKUP(Лист2!A11,Таблица1[],5,0)","v":8},{"$f":"VLOOKUP(Лист2!A11,Таблица1[],6,0)","v":"Насажд.естеств.происх."},{"$f":"VLOOKUP(Лист2!A11,Таблица1[],9,0)","v":0}]
[{"$f":"VLOOKUP(Лист2!A12,Таблица1[],2,0)","v":"Благоевское"},{"$f":"VLOOKUP(Лист2!A12,Таблица1[],3,0)","v":1},{"$f":"VLOOKUP(Лист2!A12,Таблица1[],4,0)","v":11},{"$f":"VLOOKUP(Лист2!A12,Таблица1[],5,0)","v":22},{"$f":"VLOOKUP(Лист2!A12,Таблица1[],6,0)","v":"Насажд.естеств.происх."},{"$f":"VLOOKUP(Лист2!A12,Таблица1[],9,0)","v":0}]
[{"$f":"VLOOKUP(Лист2!A13,Таблица1[],2,0)","v":"Благоевское"},{"$f":"VLOOKUP(Лист2!A13,Таблица1[],3,0)","v":1},{"$f":"VLOOKUP(Лист2!A13,Таблица1[],4,0)","v":13},{"$f":"VLOOKUP(Лист2!A13,Таблица1[],5,0)","v":5},{"$f":"VLOOKUP(Лист2!A13,Таблица1[],6,0)","v":"Насажд.естеств.происх."},{"$f":"VLOOKUP(Лист2!A13,Таблица1[],9,0)","v":0}]
[{"$f":"VLOOKUP(Лист2!A14,Таблица1[],2,0)","v":"Благоевское"},{"$f":"VLOOKUP(Лист2!A14,Таблица1[],3,0)","v":1},{"$f":"VLOOKUP(Лист2!A14,Таблица1[],4,0)","v":14},{"$f":"VLOOKUP(Лист2!A14,Таблица1[],5,0)","v":13},{"$f":"VLOOKUP(Лист2!A14,Таблица1[],6,0)","v":"Насажд.естеств.происх."},{"$f":"VLOOKUP(Лист2!A14,Таблица1[],9,0)","v":0}]
[{"$f":"VLOOKUP(Лист2!A15,Таблица1[],2,0)","v":"Благоевское"},{"$f":"VLOOKUP(Лист2!A15,Таблица1[],3,0)","v":1},{"$f":"VLOOKUP(Лист2!A15,Таблица1[],4,0)","v":15},{"$f":"VLOOKUP(Лист2!A15,Таблица1[],5,0)","v":10},{"$f":"VLOOKUP(Лист2!A15,Таблица1[],6,0)","v":"Насажд.естеств.происх."},{"$f":"VLOOKUP(Лист2!A15,Таблица1[],9,0)","v":0}]
[{"$f":"VLOOKUP(Лист2!A16,Таблица1[],2,0)","v":"Благоевское"},{"$f":"VLOOKUP(Лист2!A16,Таблица1[],3,0)","v":1},{"$f":"VLOOKUP(Лист2!A16,Таблица1[],4,0)","v":16},{"$f":"VLOOKUP(Лист2!A16,Таблица1[],5,0)","v":14},{"$f":"VLOOKUP(Лист2!A16,Таблица1[],6,0)","v":"Насажд.естеств.происх."},{"$f":"VLOOKUP(Лист2!A16,Таблица1[],9,0)","v":0}]
[{"$f":"VLOOKUP(Лист2!A17,Таблица1[],2,0)","v":"Благоевское"},{"$f":"VLOOKUP(Лист2!A17,Таблица1[],3,0)","v":1},{"$f":"VLOOKUP(Лист2!A17,Таблица1[],4,0)","v":17},{"$f":"VLOOKUP(Лист2!A17,Таблица1[],5,0)","v":26},{"$f":"VLOOKUP(Лист2!A17,Таблица1[],6,0)","v":"Насажд.естеств.происх."},{"$f":"VLOOKUP(Лист2!A17,Таблица1[],9,0)","v":0}]
[{"$f":"VLOOKUP(Лист2!A18,Таблица1[],2,0)","v":"Благоевское"},{"$f":"VLOOKUP(Лист2!A18,Таблица1[],3,0)","v":1},{"$f":"VLOOKUP(Лист2!A18,Таблица1[],4,0)","v":18},{"$f":"VLOOKUP(Лист2!A18,Таблица1[],5,0)","v":31},{"$f":"VLOOKUP(Лист2!A18,Таблица1[],6,0)","v":"Гарь"},{"$f":"VLOOKUP(Лист2!A18,Таблица1[],9,0)","v":0}]
[{"$f":"VLOOKUP(Лист2!A19,Таблица1[],2,0)","v":"Благоевское"},{"$f":"VLOOKUP(Лист2!A19,Таблица1[],3,0)","v":1},{"$f":"VLOOKUP(Лист2!A19,Таблица1[],4,0)","v":19},{"$f":"VLOOKUP(Лист2!A19,Таблица1[],5,0)","v":12},{"$f":"VLOOKUP(Лист2!A19,Таблица1[],6,0)","v":"Насажд.естеств.происх."},{"$f":"VLOOKUP(Лист2!A19,Таблица1[],9,0)","v":0}]
[{"$f":"VLOOKUP(Лист2!A20,Таблица1[],2,0)","v":"Благоевское"},{"$f":"VLOOKUP(Лист2!A20,Таблица1[],3,0)","v":1},{"$f":"VLOOKUP(Лист2!A20,Таблица1[],4,0)","v":20},{"$f":"VLOOKUP(Лист2!A20,Таблица1[],5,0)","v":7},{"$f":"VLOOKUP(Лист2!A20,Таблица1[],6,0)","v":"Насажд.естеств.происх."},{"$f":"VLOOKUP(Лист2!A20,Таблица1[],9,0)","v":0}]
[{"$f":"VLOOKUP(Лист2!A21,Таблица1[],2,0)","v":"Благоевское"},{"$f":"VLOOKUP(Лист2!A21,Таблица1[],3,0)","v":1},{"$f":"VLOOKUP(Лист2!A21,Таблица1[],4,0)","v":21},{"$f":"VLOOKUP(Лист2!A21,Таблица1[],5,0)","v":28},{"$f":"VLOOKUP(Лист2!A21,Таблица1[],6,0)","v":"Насажд.естеств.происх."},{"$f":"VLOOKUP(Лист2!A21,Таблица1[],9,0)","v":0}]
[{"$f":"VLOOKUP(Лист2!A22,Таблица1[],2,0)","v":"Благоевское"},{"$f":"VLOOKUP(Лист2!A22,Таблица1[],3,0)","v":1},{"$f":"VLOOKUP(Лист2!A22,Таблица1[],4,0)","v":22},{"$f":"VLOOKUP(Лист2!A22,Таблица1[],5,0)","v":40},{"$f":"VLOOKUP(Лист2!A22,Таблица1[],6,0)","v":"Насажд.естеств.происх."},{"$f":"VLOOKUP(Лист2!A22,Таблица1[],9,0)","v":0}]
[{"$f":"VLOOKUP(Лист2!A23,Таблица1[],2,0)","v":"Благоевское"},{"$f":"VLOOKUP(Лист2!A23,Таблица1[],3,0)","v":1},{"$f":"VLOOKUP(Лист2!A23,Таблица1[],4,0)","v":23},{"$f":"VLOOKUP(Лист2!A23,Таблица1[],5,0)","v":39},{"$f":"VLOOKUP(Лист2!A23,Таблица1[],6,0)","v":"Насажд.естеств.происх."},{"$f":"VLOOKUP(Лист2!A23,Таблица1[],9,0)","v":0}]